bitfinex/quotes_SOLUSD_20230101
["timestamp","ask_amount","ask_price","bid_price","bid_amount"]
[1672556237414,40.0,9.8018,9.7941,23.1043]
[1672556237625,76.6,9.8017,9.7941,23.1043]
[1672556237848,76.6,9.8017,9.7942,23.1043]
[1672556238909,76.6,9.8021,9.7942,23.1043]
[1672556239100,76.6,9.8021,9.7943,17.33477442]
[1672556239306,40.0,9.802,9.7943,17.33477442]
[1672556239519,40.0,9.8018,9.7943,17.33477442]
[1672556239741,76.6,9.8017,9.7944,23.8516]
[1672556239934,40.0,9.8016,9.7944,23.8516]
[1672556240164,40.0,9.8014,9.7944,23.8516]
[1672556240375,76.61,9.8013,9.7944,23.8516]
[1672556240918,76.61,9.8015,9.7944,23.8516]
[1672556241759,40.0,9.8014,9.7944,23.8516]
[1672556241974,76.61,9.8013,9.7944,23.8516]
[1672556242163,40.0,9.8012,9.7944,23.8516]
[1672556242366,76.61,9.8011,9.7944,23.8516]
[1672556242594,40.0,9.801,9.7944,23.8516]
[1672556242808,76.61,9.8009,9.7944,23.8516]
[1672556243119,76.61,9.8009,9.7945,17.33164699]
[1672556243648,76.61,9.8011,9.7945,17.33164699]
[1672556245220,76.61,9.8015,9.7945,17.33164699]
[1672556245640,76.6,9.8017,9.7945,17.33164699]
[1672556245851,76.6,9.8019,9.7945,17.33164699]
[1672556246485,76.6,9.8022,9.7946,40.0]
[1672556247123,76.6,9.8022,9.7947,305.4]
[1672556247332,76.6,9.8022,9.7948,40.0]
[1672556249531,76.6,9.8022,9.7948,345.4]
[1672556251011,76.6,9.8022,9.7949,17.32539252]
[1672556252467,76.6,9.8022,9.795,40.0]
[1672556253323,76.59,9.8032,9.795,40.0]
[1672556255199,76.59,9.8032,9.7951,17.32226547]
[1672556256272,152.62241467,9.8032,9.7951,17.32226547]
[1672556258371,76.03241467,9.8027,9.7951,17.32226547]
[1672556258563,76.6,9.8026,9.7951,17.32226547]
[1672556258775,76.6,9.8026,9.7952,40.0]
[1672556258986,76.59,9.8031,9.7952,40.0]
[1672556259316,152.62241467,9.8031,9.7952,40.0]
[1672556259718,76.03241467,9.803,9.7952,40.0]
[1672556259935,76.59,9.8029,9.7952,40.0]
[1672556260134,76.59,9.8029,9.7953,17.31913856]
[1672556260350,99.60251467,9.8023,9.7953,17.31913856]
[1672556260787,23.5701,9.8023,9.7953,17.31913856]
[1672556261610,76.6,9.8022,9.7953,17.31913856]
[1672556262245,76.03241467,9.8018,9.7953,17.31913856]
[1672556262676,76.6,9.8017,9.7953,17.31913856]
[1672556263091,76.6,9.8017,9.7952,40.0]
[1672556264141,152.63241467,9.8017,9.7952,345.4]
[1672556264359,76.03241467,9.8017,9.7952,345.4]
[1672556265297,76.03241467,9.8017,9.7952,40.0]
[1672556266881,76.03241467,9.8016,9.7952,40.0]
[1672556267079,76.03241467,9.8016,9.7953,17.31080891]
[1672556268250,76.03241467,9.8014,9.7953,17.31080891]
[1672556272965,76.03241467,9.8016,9.7953,17.31080891]
[1672556273495,76.03241467,9.8021,9.7953,17.31080891]
[1672556273712,152.63241467,9.8022,9.7953,17.31080891]
[1672556273903,76.6,9.8022,9.7953,17.31080891]
[1672556277086,23.5701,9.8023,9.7953,17.31080891]
[1672556280745,23.5701,9.8023,9.7955,40.0]
[1672556281162,23.5701,9.8023,9.7957,305.4]
[1672556281405,23.5701,9.8023,9.7958,40.0]
[1672556284026,23.5701,9.8023,9.7959,17.30142893]
[1672556289593,116.6,9.8022,9.7959,17.30142893]
[1672556290133,116.6,9.8022,9.7947,24.8047]
[1672556290537,76.6,9.8022,9.7947,24.8047]
[1672556290747,40.0,9.8021,9.7947,24.8047]
[1672556290974,40.0,9.8019,9.7947,24.8047]
[1672556291196,76.6,9.802,9.7948,17.31862644]
[1672556291501,40.0,9.8021,9.7948,17.31862644]
[1672556291717,76.6,9.802,9.7948,17.31862644]
[1672556293175,76.6,9.8022,9.7948,17.31862644]
[1672556293498,40.0,9.8021,9.7948,17.31862644]
[1672556293708,76.6,9.802,9.7948,17.31862644]
[1672556294024,76.6,9.8022,9.7948,17.31862644]
[1672556294870,23.5701,9.8023,9.7948,17.31862644]
[1672556297490,23.5701,9.8023,9.7949,40.0]
[1672556298234,23.5701,9.8023,9.7951,40.0]
[1672556302224,23.5701,9.8023,9.7952,17.31237235]
[1672556304116,23.5701,9.8023,9.7942,40.0]
[1672556306097,23.5701,9.8023,9.7943,17.32644477]
[1672556307468,23.5701,9.8023,9.7945,40.0]
[1672556307888,23.5701,9.8023,9.7947,305.4]
[1672556308103,23.5701,9.8023,9.7948,40.0]
[1672556309993,23.5701,9.8023,9.7949,17.31706287]
[1672556315985,23.5701,9.8023,9.7943,305.4]
[1672556317039,23.5701,9.8023,9.7945,17.32331734]
[1672556317905,76.6,9.8022,9.7945,17.32331734]
[1672556319784,40.0,9.8021,9.7945,17.32331734]
[1672556319982,40.0,9.8021,9.7938,40.0]
[1672556320214,76.6,9.8022,9.7938,40.0]
[1672556321154,76.6,9.8022,9.794,17.33113615]
[1672556324535,23.5701,9.8023,9.7943,40.0]
[1672556325061,23.5701,9.8023,9.7945,40.0]
[1672556326314,23.5701,9.8023,9.7948,40.0]
[1672556327138,23.5701,9.8023,9.795,40.0]
[1672556327994,23.5701,9.8023,9.7951,305.4]
[1672556328205,23.5701,9.8023,9.7952,40.0]
[1672556332303,23.5701,9.8023,9.7953,17.31080891]
[1672556360183,23.5701,9.8023,9.7955,305.4]
[1672556360400,23.5701,9.8023,9.7956,40.0]
[1672556361360,23.5701,9.8023,9.7957,17.30455546]
[1672556365423,23.5701,9.8023,9.7958,40.0]
[1672556366070,23.5701,9.8023,9.7959,17.30142893]
[1672556367833,0.28138528,15.651,9.7959,17.30142893]
[1672556367834,76.03241467,9.8077,9.7961,305.4]
[1672556368048,152.14571418,9.8096,9.7963,40.0]
[1672556368049,76.03241467,9.8078,9.7963,40.0]
[1672556368275,76.03241467,9.8078,9.7965,305.4]
[1672556368601,76.03241467,9.8078,9.7964,123.9296]
[1672556368602,76.03241467,9.8078,9.7967,345.4]
[1672556368806,76.03241467,9.8078,9.7969,305.4]
[1672556369144,76.03241467,9.8078,9.7972,40.0]
[1672556369203,76.03241467,9.8078,9.7975,40.0]
[1672556369436,76.03241467,9.8078,9.7978,40.0]
[1672556369663,99.3368,9.8093,9.798,305.4]
[1672556369664,76.56,9.8077,9.798,305.4]
[1672556369838,76.56,9.8077,9.7887,345.4]
[1672556369839,76.03241467,9.8073,9.7887,345.4]
[1672556370040,40.0,9.8071,9.789,40.0]
[1672556370400,40.0,9.8069,9.7929,40.0]
[1672556370591,40.0,9.8067,9.7931,305.4]
[1672556370777,40.0,9.8065,9.7933,305.4]
[1672556371001,40.0,9.8063,9.7936,40.0]
[1672556371197,96.57,9.8062,9.7939,40.0]
[1672556371413,40.0,9.8061,9.7941,305.4]
[1672556371682,40.0,9.8059,9.7943,305.4]
[1672556371844,40.0,9.8057,9.7946,40.0]
[1672556372155,40.0,9.8055,9.7949,40.0]
[1672556372358,40.0,9.8053,9.7952,40.0]
[1672556372575,96.58,9.8052,9.7954,305.4]
[1672556372795,40.0,9.8051,9.7956,305.4]
[1672556373004,96.58,9.805,9.7958,305.4]
[1672556373216,40.0,9.8049,9.7958,305.4]
[1672556373432,96.58,9.8048,9.7958,305.4]
[1672556373750,40.0,9.8047,9.7958,305.4]
[1672556373954,96.58,9.8046,9.7957,345.4]
[1672556374575,120.9732,9.8046,9.7957,345.4]
[1672556375309,40.0,9.8045,9.7957,305.4]
[1672556375514,96.58,9.8044,9.7955,305.4]
[1672556375725,96.58,9.8044,9.7957,305.4]
[1672556375934,120.1372,9.8044,9.7959,305.4]
[1672556376353,120.1372,9.8044,9.796,40.0]
[1672556377222,120.1372,9.8044,9.7961,17.29290257]
[1672556381520,40.0,9.8043,9.7961,17.29290257]
[1672556381834,76.58,9.8042,9.7961,17.29290257]
[1672556382023,20.0,9.8041,9.7961,17.29290257]
[1672556382239,20.0,9.8041,9.7959,40.0]
[1672556382866,20.0,9.8042,9.7959,40.0]
[1672556383074,76.58,9.8041,9.796,17.29446576]
[1672556383285,20.0,9.804,9.796,17.29446576]
[1672556383958,20.0,9.8042,9.796,17.29446576]
[1672556384173,76.58,9.8041,9.796,17.29446576]
[1672556384358,20.0,9.804,9.796,17.29446576]
[1672556385116,20.0,9.8042,9.796,17.29446576]
[1672556385312,76.58,9.8041,9.796,17.29446576]
[1672556385522,20.0,9.804,9.796,17.29446576]
[1672556385948,20.0,9.8042,9.796,17.29446576]
[1672556386142,76.58,9.8041,9.796,17.29446576]
[1672556386355,20.0,9.804,9.796,17.29446576]
[1672556387212,20.0,9.8042,9.796,17.29446576]
[1672556387408,20.0,9.8042,9.7962,40.0]
[1672556387617,20.0,9.8043,9.7965,40.0]
[1672556387846,20.0,9.8043,9.7966,305.4]
[1672556388251,20.0,9.8043,9.7967,40.0]
[1672556389005,20.0,9.8043,9.7967,345.4]
[1672556389943,20.0,9.8043,9.7965,40.0]
[1672556390778,20.0,9.8043,9.7964,305.4]
[1672556390987,96.58,9.8043,9.7964,305.4]
[1672556391198,96.58,9.8043,9.7966,17.28508712]
[1672556391940,20.0,9.8043,9.7966,17.28508712]
[1672556392136,20.0,9.8043,9.7962,40.0]
[1672556394547,40.0,9.8071,9.7962,40.0]
[1672556394548,76.03241467,9.8073,9.7963,403.16569669]
[1672556394760,76.03241467,9.8085,9.7966,40.0]
[1672556394969,76.03241467,9.8085,9.7969,40.0]
[1672556394970,76.55,9.8084,9.7969,40.0]
[1672556395192,76.55,9.8084,9.7972,40.0]
[1672556395402,76.55,9.8084,9.7974,305.4]
[1672556395613,76.03241467,9.8085,9.7976,305.4]
[1672556395826,76.03241467,9.8085,9.7979,40.0]
[1672556396048,76.03241467,9.8085,9.7982,40.0]
[1672556396233,76.03241467,9.8085,9.7984,305.4]
[1672556396449,76.03241467,9.8085,9.7986,305.4]
[1672556396657,76.54,9.8099,9.7989,40.0]
[1672556396658,76.03241467,9.8086,9.7989,40.0]
[1672556396889,76.03241467,9.8086,9.7992,40.0]
[1672556397081,76.03241467,9.8086,9.7995,40.0]
[1672556397291,76.03241467,9.8086,9.7997,305.4]
[1672556397502,76.03241467,9.8086,9.8,40.0]
[1672556397719,76.03241467,9.8086,9.8003,40.0]
[1672556398140,76.03241467,9.8087,9.8003,40.0]
[1672556398356,76.03241467,9.8087,9.8005,345.4]
[1672556398546,76.03241467,9.8087,9.8006,40.0]
[1672556398756,76.03241467,9.8089,9.8006,40.0]
[1672556398982,76.55,9.8088,9.8008,40.0]
[1672556399401,76.55,9.8088,9.8007,329.7052]
[1672556399626,76.55,9.8088,9.8009,40.0]
[1672556399936,76.55,9.8088,9.8009,345.4]
[1672556400131,76.55,9.8088,9.801,24.3052]
[1672556400768,76.55,9.8088,9.8011,24.3052]
[1672556401820,76.55,9.8088,9.8008,40.0]
[1672556401821,76.55,9.8088,9.8012,24.3052]
[1672556402545,40.0,9.8087,9.8012,24.3052]
[1672556402873,76.55,9.8088,9.8012,24.3052]
[1672556403090,40.0,9.8087,9.8012,24.3052]
[1672556403617,76.55,9.8088,9.8012,24.3052]
[1672556403924,40.0,9.8087,9.8012,24.3052]
[1672556404129,116.55,9.8087,9.8012,24.3052]
[1672556404865,40.0,9.8086,9.8012,24.3052]
[1672556405483,40.0,9.8084,9.8012,24.3052]
[1672556405691,40.0,9.8082,9.8012,24.3052]
[1672556405910,76.55,9.8081,9.8012,24.3052]
[1672556406120,40.0,9.808,9.8012,24.3052]
[1672556407412,40.0,9.8078,9.8012,24.3052]
[1672556407620,40.0,9.8076,9.8012,24.3052]
[1672556407809,76.56,9.8075,9.8012,24.3052]
[1672556408028,40.0,9.8074,9.8012,24.3052]
[1672556408454,40.0,9.8076,9.8012,24.3052]
[1672556408669,40.0,9.8074,9.8012,24.3052]
[1672556408878,76.56,9.8073,9.8012,24.3052]
[1672556409074,40.0,9.8072,9.8012,24.3052]
[1672556410350,40.0,9.8074,9.8012,24.3052]
[1672556415489,40.0,9.8072,9.8012,24.3052]
[1672556415699,40.0,9.807,9.8012,24.3052]
[1672556416016,76.56,9.8069,9.8012,24.3052]
[1672556416219,76.56,9.8071,9.8012,24.3052]
[1672556416651,40.0,9.8074,9.8012,24.3052]
[1672556416652,76.56,9.8073,9.8012,24.3052]
[1672556417388,40.0,9.8074,9.8012,24.3052]
[1672556417699,40.0,9.8072,9.8012,24.3052]
[1672556417914,76.56,9.8071,9.8012,24.3052]
[1672556418120,40.0,9.8076,9.8012,24.3052]
[1672556418331,40.0,9.8074,9.8012,24.3052]
[1672556418559,76.56,9.8073,9.8012,24.3052]
[1672556418745,40.0,9.8072,9.8012,24.3052]
[1672556418962,40.0,9.807,9.8012,24.3052]
[1672556419929,76.56,9.8071,9.8012,24.3052]
[1672556420425,40.0,9.807,9.8012,24.3052]
[1672556421074,40.0,9.8068,9.8012,24.3052]
[1672556421288,76.56,9.8067,9.8012,24.3052]
[1672556421497,40.0,9.8066,9.8012,24.3052]
[1672556421707,40.0,9.8064,9.8012,24.3052]
[1672556421919,76.57,9.8063,9.8012,24.3052]
[1672556422235,40.0,9.8062,9.8012,24.3052]
[1672556422448,40.0,9.8062,9.8013,17.21166081]
[1672556424540,76.57,9.8063,9.8013,17.21166081]
[1672556424959,40.0,9.8072,9.8013,17.21166081]
[1672556425171,76.56,9.8071,9.8013,17.21166081]
[1672556425380,40.0,9.807,9.8013,17.21166081]
[1672556425613,40.0,9.8068,9.8013,17.21166081]
[1672556425918,76.56,9.8067,9.8013,17.21166081]
[1672556426315,40.0,9.8066,9.8013,17.21166081]
[1672556426540,76.57,9.8065,9.8013,17.21166081]
[1672556426733,40.0,9.8064,9.8013,17.21166081]
[1672556426946,40.0,9.8062,9.8013,17.21166081]
[1672556427168,40.0,9.806,9.8013,17.21166081]
[1672556427382,76.57,9.8059,9.8013,17.21166081]
[1672556427584,40.0,9.8058,9.8013,17.21166081]
[1672556427793,40.0,9.8056,9.8013,17.21166081]
[1672556428005,76.57,9.8055,9.8013,17.21166081]
[1672556428219,40.0,9.8054,9.8013,17.21166081]
[1672556428417,40.0,9.8052,9.8013,17.21166081]
[1672556428629,40.0,9.805,9.8013,17.21166081]
[1672556429259,76.58,9.8051,9.8013,17.21166081]
[1672556429471,40.0,9.8054,9.8013,17.21166081]
[1672556430218,76.57,9.8055,9.8013,17.21166081]
[1672556430428,40.0,9.8058,9.8013,17.21166081]
[1672556432537,76.57,9.8065,9.8013,17.21166081]
[1672556437791,40.0,9.807,9.8013,17.21166081]
[1672556437991,40.0,9.8068,9.8013,17.21166081]
[1672556438207,40.0,9.8066,9.8013,17.21166081]
[1672556438415,76.57,9.8065,9.8013,17.21166081]
[1672556438609,40.0,9.8064,9.8013,17.21166081]
[1672556438821,40.0,9.8062,9.8013,17.21166081]
[1672556439041,76.57,9.8061,9.8013,17.21166081]
[1672556439765,76.57,9.8063,9.8013,17.21166081]
[1672556440214,40.0,9.8062,9.8013,17.21166081]
[1672556440407,40.0,9.806,9.8013,17.21166081]
[1672556442094,76.57,9.8061,9.8013,17.21166081]
[1672556442408,40.0,9.8062,9.8013,17.21166081]
[1672556442600,40.0,9.806,9.8013,17.21166081]
[1672556442811,40.0,9.8058,9.8013,17.21166081]
[1672556443017,96.57,9.8057,9.8013,17.21166081]
[1672556443228,20.0,9.8057,9.7975,305.4]
[1672556443652,40.0,9.8056,9.7974,40.0]
[1672556443966,20.0,9.8055,9.7976,40.0]
[1672556444192,20.0,9.8055,9.7977,305.4]
[1672556445672,40.0,9.8054,9.7976,322.6694586]
[1672556445878,20.0,9.8053,9.7976,322.6694586]
[1672556446287,40.0,9.8052,9.7978,17.26633328]
[1672556446498,20.0,9.8051,9.7978,17.26633328]
[1672556446917,43.3772,9.8059,9.7978,17.26633328]
[1672556447128,40.0,9.8057,9.7978,17.26633328]
[1672556447664,20.0,9.8056,9.7978,17.26633328]
[1672556448071,40.0,9.8055,9.7971,40.0]
[1672556448280,20.0,9.8054,9.7973,305.4]
[1672556448499,20.0,9.8054,9.7975,305.4]
[1672556449433,20.0,9.8054,9.7968,40.0]
[1672556449642,20.0,9.8054,9.797,305.4]
[1672556449979,20.0,9.8054,9.7972,305.4]
[1672556450187,20.0,9.8054,9.7974,305.4]
[1672556450395,20.0,9.8054,9.7976,305.4]
[1672556451113,20.0,9.8055,9.7976,305.4]
[1672556451323,1385.32667633,10.003,9.7969,17.28039823]
[1672556451324,76.55,9.8083,9.7977,325.4]
[1672556451558,76.55,9.8091,9.7979,305.4]
[1672556451869,76.55,9.8091,9.7977,20.0]
[1672556451870,76.55,9.8091,9.7982,40.0]
[1672556452073,76.55,9.8091,9.7984,305.4]
[1672556452272,76.54,9.8092,9.7987,40.0]
[1672556452475,76.54,9.8092,9.7988,20.0]
[1672556452895,76.54,9.8092,9.799,345.4]
[1672556453128,40.0,9.8091,9.7992,40.0]
[1672556453333,76.55,9.809,9.7993,20.0]
[1672556453542,40.0,9.8089,9.7994,305.4]
[1672556453756,40.0,9.8087,9.7995,20.0]
[1672556453967,76.55,9.8086,9.7995,20.0]
[1672556454290,40.0,9.8085,9.7996,22.5482]
[1672556454494,76.55,9.8084,9.7997,20.0]
[1672556454810,40.0,9.8083,9.7997,42.5482]
[1672556455005,76.55,9.8082,9.7997,42.5482]
[1672556455228,76.55,9.8082,9.7998,22.5482]
[1672556455440,40.0,9.8085,9.7998,22.5482]
[1672556455650,40.0,9.8083,9.7998,22.5482]
[1672556455861,76.55,9.8082,9.7999,22.5482]
[1672556456071,40.0,9.8081,9.7999,22.5482]
[1672556456281,40.0,9.8079,9.7999,22.5482]
[1672556456489,76.56,9.8078,9.8,24.3098]
[1672556457118,76.55,9.808,9.8001,24.3098]
[1672556457460,40.0,9.8079,9.8001,24.3098]
[1672556457651,40.0,9.8079,9.7997,20.0]
[1672556457652,40.0,9.8077,9.8002,24.3098]
[1672556457858,40.0,9.8075,9.8002,24.3098]
[1672556458074,76.56,9.8074,9.8002,24.3098]
[1672556458283,40.0,9.8073,9.8002,41.53863938]
[1672556458592,40.0,9.8071,9.8002,41.53863938]
[1672556458810,76.56,9.807,9.8002,41.53863938]
[1672556459013,40.0,9.8073,9.8002,41.53863938]
[1672556459237,76.56,9.8072,9.8002,41.53863938]
[1672556459861,40.0,9.8071,9.8002,41.53863938]
[1672556460057,76.56,9.807,9.8002,41.53863938]
[1672556460267,76.56,9.8072,9.8002,41.53863938]
[1672556461327,76.55,9.808,9.8002,41.53863938]
[1672556461954,40.0,9.8079,9.8003,23.4915]
[1672556462163,76.56,9.8078,9.8003,23.4915]
[1672556462587,40.0,9.8083,9.8003,23.4915]
[1672556462809,40.0,9.8081,9.8003,23.4915]
[1672556463018,40.0,9.8079,9.8003,23.4915]
[1672556463228,76.56,9.8078,9.8004,40.71721571]
[1672556463549,40.0,9.8077,9.8004,40.71721571]
[1672556463741,40.0,9.8075,9.8004,40.71721571]
[1672556463951,40.0,9.8073,9.8004,40.71721571]
[1672556465334,76.56,9.8074,9.8004,40.71721571]
[1672556465759,40.0,9.8073,9.8004,40.71721571]
[1672556465960,40.0,9.8079,9.8004,40.71721571]
[1672556465961,40.0,9.8077,9.8004,40.71721571]
[1672556466168,40.0,9.8075,9.8004,40.71721571]
[1672556466377,76.56,9.8074,9.8004,40.71721571]
[1672556466586,40.0,9.8073,9.8004,40.71721571]
[1672556466810,40.0,9.8071,9.8004,40.71721571]
[1672556467004,40.0,9.8069,9.8004,40.71721571]
[1672556467342,40.0,9.8067,9.8004,40.71721571]
[1672556467651,40.0,9.8065,9.8004,40.71721571]
[1672556468702,76.57,9.8066,9.8004,40.71721571]
[1672556468903,40.0,9.8069,9.8004,40.71721571]
[1672556469115,40.0,9.8071,9.8004,40.71721571]
[1672556469527,76.56,9.8072,9.8004,40.71721571]
[1672556469737,40.0,9.8075,9.8004,40.71721571]
[1672556469951,40.0,9.8073,9.8004,40.71721571]
[1672556470162,76.56,9.8072,9.8004,40.71721571]
[1672556470377,40.0,9.8071,9.8004,40.71721571]
[1672556470588,76.56,9.8072,9.8004,40.71721571]
[1672556471530,40.0,9.8071,9.8004,40.71721571]
[1672556472276,40.0,9.807,9.8004,40.71721571]
[1672556473311,76.56,9.8072,9.8004,40.71721571]
[1672556473528,40.0,9.8073,9.8004,40.71721571]
[1672556473746,76.56,9.8072,9.8004,40.71721571]
[1672556474161,40.0,9.8077,9.8004,40.71721571]
[1672556474361,76.56,9.8076,9.8004,40.71721571]
[1672556474575,40.0,9.8075,9.8004,40.71721571]
[1672556474783,76.56,9.8074,9.8004,40.71721571]
[1672556475323,40.0,9.8073,9.8004,40.71721571]
[1672556475517,40.0,9.8071,9.8004,40.71721571]
[1672556475723,40.0,9.8069,9.8004,40.71721571]
[1672556475938,76.56,9.8068,9.8004,40.71721571]
[1672556476149,40.0,9.8067,9.8004,40.71721571]
[1672556476793,76.57,9.8066,9.8004,40.71721571]
[1672556477223,40.0,9.8067,9.8004,40.71721571]
[1672556477534,40.0,9.8065,9.8004,40.71721571]
[1672556477747,76.56,9.8068,9.8004,40.71721571]
[1672556477958,40.0,9.8067,9.8004,40.71721571]
[1672556478173,40.0,9.8065,9.8004,40.71721571]
[1672556478578,76.57,9.8066,9.8004,40.71721571]
[1672556478795,76.56,9.807,9.8004,40.71721571]
[1672556478995,40.0,9.8071,9.8004,40.71721571]
[1672556479206,76.56,9.807,9.8004,40.71721571]
[1672556479842,40.0,9.8071,9.8004,40.71721571]
[1672556480057,76.56,9.807,9.8004,40.71721571]
[1672556480380,40.0,9.8073,9.8004,40.71721571]
[1672556480584,40.0,9.8071,9.8004,40.71721571]
[1672556480779,76.56,9.807,9.8004,40.71721571]
[1672556481217,76.56,9.8072,9.8004,40.71721571]
[1672556481428,76.56,9.8074,9.8004,40.71721571]
[1672556482268,76.56,9.8076,9.8004,40.71721571]
[1672556483200,76.03241467,9.8114,9.8004,40.71721571]
[1672556483201,40.0,9.8079,9.8004,40.71721571]
[1672556483406,76.56,9.8078,9.8004,40.71721571]
[1672556483851,76.55,9.8084,9.8004,40.71721571]
[1672556484158,40.0,9.8083,9.8005,24.1745]
[1672556484352,76.55,9.8082,9.8005,24.1745]
[1672556484563,40.0,9.8081,9.8006,23.6516]
[1672556484784,40.0,9.8079,9.8006,23.6516]
[1672556484987,76.56,9.8078,9.8006,23.6516]
[1672556485201,76.56,9.8078,9.8006,40.87419218]
[1672556485425,76.55,9.808,9.8006,40.87419218]
[1672556485932,76.55,9.808,9.8007,40.0]
[1672556486154,40.0,9.8108,9.8007,40.0]
[1672556486351,40.0,9.8106,9.8009,305.4]
[1672556486558,76.53,9.8105,9.8009,305.4]
[1672556486878,40.0,9.8104,9.8009,305.4]
[1672556487083,76.54,9.8103,9.8011,305.4]
[1672556487308,76.54,9.8103,9.8012,40.0]
[1672556487524,40.0,9.8102,9.8012,40.0]
[1672556487837,40.0,9.81,9.8013,22.9469]
[1672556488033,40.0,9.8098,9.8013,22.9469]
[1672556488244,76.54,9.8097,9.8014,22.9469]
[1672556488455,40.0,9.8096,9.8014,22.9469]
[1672556488673,76.54,9.8095,9.8014,22.9469]
[1672556488886,76.54,9.8095,9.8015,22.9469]
[1672556489422,40.0,9.8094,9.8015,22.9469]
[1672556489640,40.0,9.8092,9.8016,22.9469]
[1672556489847,76.55,9.8091,9.8016,22.9469]
[1672556491106,76.55,9.8091,9.8017,17.20541501]
[1672556491316,40.0,9.8098,9.8017,17.20541501]
[1672556491528,40.0,9.8096,9.8018,23.5168]
[1672556491731,76.54,9.8095,9.8018,23.5168]
[1672556491948,40.0,9.8094,9.8018,23.5168]
[1672556492150,40.0,9.8092,9.8019,23.5168]
[1672556492362,76.55,9.8091,9.8019,23.5168]
[1672556492801,40.0,9.809,9.8019,23.5168]
[1672556492989,76.55,9.8089,9.8019,23.5168]
[1672556493206,40.0,9.8088,9.8019,23.5168]
[1672556493421,76.55,9.8087,9.8019,23.5168]
[1672556493837,76.55,9.8089,9.8019,23.5168]
[1672556494049,40.0,9.8088,9.8019,23.5168]
[1672556494259,76.55,9.8087,9.8019,23.5168]
[1672556494471,76.55,9.8091,9.8019,23.5168]
[1672556494678,40.0,9.809,9.8019,23.5168]
[1672556495004,40.0,9.8088,9.8019,23.5168]
[1672556495311,76.55,9.8087,9.802,17.200731]
[1672556496258,40.0,9.8086,9.802,17.200731]
[1672556496682,40.0,9.809,9.802,17.200731]
[1672556496683,76.55,9.8085,9.802,17.200731]
[1672556496877,40.0,9.8088,9.802,17.200731]
[1672556497087,40.0,9.8086,9.802,17.200731]
[1672556497416,76.55,9.8085,9.802,17.200731]
[1672556497616,40.0,9.8084,9.802,17.200731]
[1672556497821,76.55,9.8083,9.802,17.200731]
[1672556498034,40.0,9.8082,9.802,17.200731]
[1672556498657,40.0,9.8081,9.802,17.200731]
[1672556498885,40.0,9.8086,9.802,17.200731]
[1672556499099,40.0,9.8084,9.802,17.200731]
[1672556499305,76.55,9.8083,9.802,17.200731]
[1672556499725,40.0,9.8082,9.802,17.200731]
[1672556499928,76.55,9.8081,9.802,17.200731]
[1672556500479,76.55,9.8085,9.802,17.200731]
[1672556500794,40.0,9.8084,9.802,17.200731]
[1672556501000,76.55,9.8083,9.802,17.200731]
[1672556501211,40.0,9.8082,9.802,17.200731]
[1672556501526,40.0,9.808,9.802,17.200731]
[1672556501739,76.55,9.8079,9.802,17.200731]
[1672556502352,76.55,9.8087,9.802,17.200731]
[1672556502680,40.0,9.8092,9.802,17.200731]
[1672556502892,40.0,9.809,9.802,17.200731]
[1672556503206,40.0,9.8088,9.802,17.200731]
[1672556503417,76.55,9.8087,9.802,17.200731]
[1672556504551,116.03241467,9.811,9.802,17.200731]
[1672556504552,40.0,9.81,9.802,17.200731]
[1672556504779,40.0,9.8098,9.8021,24.1267]
[1672556504973,40.0,9.8096,9.8021,24.1267]
[1672556505180,76.54,9.8095,9.8021,41.32586972]
[1672556506135,40.0,9.8094,9.8021,41.32586972]
[1672556506341,40.0,9.8092,9.8021,41.32586972]
[1672556506671,40.0,9.809,9.8021,41.32586972]
[1672556506886,40.0,9.8088,9.8021,41.32586972]
[1672556507080,76.55,9.8087,9.8021,41.32586972]
[1672556507826,40.0,9.8086,9.8021,41.32586972]
[1672556508035,76.55,9.8085,9.8021,41.32586972]
[1672556509201,40.0,9.8084,9.8021,41.32586972]
[1672556509399,76.55,9.8083,9.8021,41.32586972]
[1672556509618,76.55,9.8089,9.8021,41.32586972]
[1672556511097,40.0,9.8092,9.8021,41.32586972]
[1672556511418,40.0,9.809,9.8021,41.32586972]
[1672556511729,76.55,9.8089,9.8021,41.32586972]
[1672556511931,40.0,9.809,9.8021,41.32586972]
[1672556512140,76.55,9.8089,9.8021,41.32586972]
[1672556513082,40.0,9.8096,9.8021,41.32586972]
[1672556513287,40.0,9.8094,9.8022,23.3942]
[1672556513499,40.0,9.8092,9.8022,23.3942]
[1672556513704,76.55,9.8091,9.8022,23.3942]
[1672556513918,76.54,9.8093,9.8022,23.3942]